[Event "Early-Titled-Tuesday-Blitz-March-19-2024"]
[Site "Chess.com"]
[Date "2024.03.19"]
[Round "3"]
[White "MetiForce"]
[Black "NelsonLinda"]
[Result "1-0"]
[WhiteElo "2919"]
[BlackElo "2648"]
[TimeControl "180+1"]
[EndTime "8:28:57 PDT"]
[Termination "MetiForce won on time"]

1. d4 {[%clk 0:02:55.4]} 1... d5 {[%clk 0:02:54.4]} 2. c4 {[%clk 0:02:55.6]}
2... dxc4 {[%clk 0:02:54.7]} 3. Nf3 {[%clk 0:02:54.8]} 3... Nf6 {[%clk
0:02:53.8]} 4. e3 {[%clk 0:02:55.3]} 4... e6 {[%clk 0:02:43.9]} 5. Bxc4 {[%clk
0:02:55]} 5... c5 {[%clk 0:02:44.4]} 6. O-O {[%clk 0:02:51.8]} 6... a6 {[%clk
0:02:44.7]} 7. Be2 {[%clk 0:02:51.8]} 7... Nbd7 {[%clk 0:02:38]} 8. b3 {[%clk
0:02:50.9]} 8... b5 {[%clk 0:02:28]} 9. a4 {[%clk 0:02:49.3]} 9... b4 {[%clk
0:02:28.1]} 10. Bb2 {[%clk 0:02:49.4]} 10... Bb7 {[%clk 0:02:27.9]} 11. Nbd2
{[%clk 0:02:49.7]} 11... Be7 {[%clk 0:02:23.1]} 12. Nc4 {[%clk 0:02:49.9]} 12...
O-O {[%clk 0:02:21.3]} 13. Rc1 {[%clk 0:02:49.6]} 13... Ne4 {[%clk 0:02:12]} 14.
Nfe5 {[%clk 0:02:32.3]} 14... Ndf6 {[%clk 0:01:52.1]} 15. dxc5 {[%clk 0:02:09]}
15... Nxc5 {[%clk 0:01:44.5]} 16. Bd4 {[%clk 0:01:39.5]} 16... Rc8 {[%clk
0:01:28.4]} 17. Qc2 {[%clk 0:01:32.6]} 17... Be4 {[%clk 0:01:21.4]} 18. Qb2
{[%clk 0:01:30.9]} 18... Nd5 {[%clk 0:01:07.5]} 19. f3 {[%clk 0:01:24.8]} 19...
Bf5 {[%clk 0:00:51.7]} 20. Rfd1 {[%clk 0:00:39.1]} 20... f6 {[%clk 0:00:51.5]}
21. e4 {[%clk 0:00:37.8]} 21... fxe5 {[%clk 0:00:47.1]} 22. Bxe5 {[%clk
0:00:38.7]} 22... Nxe4 {[%clk 0:00:38.9]} 23. fxe4 {[%clk 0:00:32]} 23... Bxe4
{[%clk 0:00:39]} 24. Bg4 {[%clk 0:00:29.8]} 24... Bc5+ {[%clk 0:00:25.9]} 25.
Bd4 {[%clk 0:00:30]} 25... Qe7 {[%clk 0:00:15.2]} 26. Bxc5 {[%clk 0:00:26.8]}
26... Rxc5 {[%clk 0:00:16.1]} 27. Qd4 {[%clk 0:00:21.2]} 27... Nc3 {[%clk
0:00:11.8]} 28. Rxc3 {[%clk 0:00:18.9]} 28... bxc3 {[%clk 0:00:05.6]} 29. Qxe4
{[%clk 0:00:19.2]} 29... Kh8 {[%clk 0:00:03.2]} 30. h3 {[%clk 0:00:13.6]} 30...
h5 {[%clk 0:00:02]} 31. Be2 {[%clk 0:00:13.1]} 31... Qg5 {[%clk 0:00:02]} 32.
Bd3 {[%clk 0:00:12.5]} 32... Rff5 {[%clk 0:00:01.3]} 33. Qxe6 {[%clk 0:00:11.9]}
33... Rce5 {[%clk 0:00:01.6]} 34. Nxe5 {[%clk 0:00:11.5]} 34... Rxe5 {[%clk
0:00:02]} 35. Qc8+ {[%clk 0:00:11.7]} 1-0

[Event "Early-Titled-Tuesday-Blitz-March-19-2024"]
[Site "Chess.com"]
[Date "2024.03.19"]
[Round "3"]
[White "vladgoncharov"]
[Black "IngOscarArdila"]
[Result "1-0"]
[WhiteElo "2624"]
[BlackElo "2406"]
[TimeControl "180+1"]
[EndTime "8:28:58 PDT"]
[Termination "vladgoncharov won by checkmate"]

1. d4 {[%clk 0:03:00.9]} 1... Nf6 {[%clk 0:03:00]} 2. c4 {[%clk 0:02:57.9]} 2...
e6 {[%clk 0:02:59.8]} 3. Nc3 {[%clk 0:02:56.2]} 3... d5 {[%clk 0:02:59.9]} 4.
cxd5 {[%clk 0:02:55.2]} 4... exd5 {[%clk 0:02:59.9]} 5. Bg5 {[%clk 0:02:55.9]}
5... c6 {[%clk 0:02:59.3]} 6. e3 {[%clk 0:02:55.9]} 6... Be7 {[%clk 0:02:59.4]}
7. Bd3 {[%clk 0:02:55.3]} 7... Nbd7 {[%clk 0:02:59.4]} 8. Nge2 {[%clk 0:02:55]}
8... O-O {[%clk 0:02:58.6]} 9. O-O {[%clk 0:02:53.8]} 9... Nh5 {[%clk
0:02:54.8]} 10. Bxe7 {[%clk 0:02:53.1]} 10... Qxe7 {[%clk 0:02:55.7]} 11. Qb1
{[%clk 0:02:52.8]} 11... Nhf6 {[%clk 0:02:24.1]} 12. b4 {[%clk 0:02:51.8]} 12...
a6 {[%clk 0:02:22.1]} 13. a4 {[%clk 0:02:50.8]} 13... Re8 {[%clk 0:02:08]} 14.
b5 {[%clk 0:02:48.3]} 14... axb5 {[%clk 0:02:06.1]} 15. axb5 {[%clk 0:02:48.1]}
15... Rxa1 {[%clk 0:02:05.9]} 16. Qxa1 {[%clk 0:02:47.3]} 16... c5 {[%clk
0:02:04.1]} 17. Qa7 {[%clk 0:02:15.9]} 17... c4 {[%clk 0:02:02.1]} 18. Bf5
{[%clk 0:02:11.7]} 18... Nf8 {[%clk 0:01:46.6]} 19. Bxc8 {[%clk 0:01:58.7]}
19... Rxc8 {[%clk 0:01:47.5]} 20. Ra1 {[%clk 0:01:57.8]} 20... Ne6 {[%clk
0:01:41.5]} 21. Qb6 {[%clk 0:01:53.6]} 21... h6 {[%clk 0:01:26.4]} 22. h3 {[%clk
0:01:53.1]} 22... Qc7 {[%clk 0:00:58.3]} 23. Qxc7 {[%clk 0:01:49.8]} 23... Rxc7
{[%clk 0:00:59.2]} 24. Ra8+ {[%clk 0:01:46.5]} 24... Kh7 {[%clk 0:00:58.8]} 25.
f3 {[%clk 0:01:35]} 25... g5 {[%clk 0:00:49.3]} 26. Kf2 {[%clk 0:01:31.4]} 26...
Kg6 {[%clk 0:00:49]} 27. g4 {[%clk 0:01:07.1]} 27... h5 {[%clk 0:00:45.8]} 28.
Ng3 {[%clk 0:01:05.2]} 28... hxg4 {[%clk 0:00:44.3]} 29. hxg4 {[%clk 0:01:00.6]}
29... Ng7 {[%clk 0:00:24]} 30. Rd8 {[%clk 0:00:54.8]} 30... Ne6 {[%clk
0:00:20.5]} 31. Rd6 {[%clk 0:00:45.4]} 31... Ne8 {[%clk 0:00:18.7]} 32. Rb6
{[%clk 0:00:45]} 32... Rd7 {[%clk 0:00:16]} 33. Nf5 {[%clk 0:00:40.7]} 33... Ng7
{[%clk 0:00:16.1]} 34. e4 {[%clk 0:00:38.6]} 34... dxe4 {[%clk 0:00:14.1]} 35.
fxe4 {[%clk 0:00:38.3]} 35... Kh7 {[%clk 0:00:12.6]} 36. Nd5 {[%clk 0:00:32]}
36... Ne8 {[%clk 0:00:07.5]} 37. Ke3 {[%clk 0:00:29.3]} 37... Nf4 {[%clk
0:00:07.4]} 38. Rh6+ {[%clk 0:00:17.3]} 38... Kg8 {[%clk 0:00:06.4]} 39. Nde7+
{[%clk 0:00:17.4]} 39... Rxe7 {[%clk 0:00:04.4]} 40. Nxe7+ {[%clk 0:00:17.6]}
40... Kf8 {[%clk 0:00:05.3]} 41. Nf5 {[%clk 0:00:17.5]} 41... c3 {[%clk
0:00:04.8]} 42. Rh8# {[%clk 0:00:15.8]} 1-0

[Event "Early-Titled-Tuesday-Blitz-March-19-2024"]
[Site "Chess.com"]
[Date "2024.03.19"]
[Round "3"]
[White "agvania123"]
[Black "Lovetov"]
[Result "1-0"]
[WhiteElo "2416"]
[BlackElo "2547"]
[TimeControl "180+1"]
[EndTime "8:28:59 PDT"]
[Termination "agvania123 won by resignation"]

1. c4 {[%clk 0:03:00.9]} 1... c5 {[%clk 0:02:57.6]} 2. Nc3 {[%clk 0:02:59.9]}
2... Nc6 {[%clk 0:02:58]} 3. Nf3 {[%clk 0:03:00.5]} 3... g6 {[%clk 0:02:58.3]}
4. e4 {[%clk 0:02:59.3]} 4... Bg7 {[%clk 0:02:57.9]} 5. g3 {[%clk 0:02:59.6]}
5... e6 {[%clk 0:02:56.3]} 6. Bg2 {[%clk 0:03:00.5]} 6... Nge7 {[%clk
0:02:56.5]} 7. O-O {[%clk 0:03:00.9]} 7... O-O {[%clk 0:02:57.1]} 8. d3 {[%clk
0:03:01]} 8... a6 {[%clk 0:02:54.6]} 9. Be3 {[%clk 0:03:00]} 9... Nd4 {[%clk
0:02:55]} 10. Qd2 {[%clk 0:02:57.5]} 10... d6 {[%clk 0:02:52]} 11. Bh6 {[%clk
0:02:56.9]} 11... Nec6 {[%clk 0:02:49.5]} 12. Bxg7 {[%clk 0:02:54]} 12... Kxg7
{[%clk 0:02:50.4]} 13. Nxd4 {[%clk 0:02:54.3]} 13... Nxd4 {[%clk 0:02:50.3]} 14.
Ne2 {[%clk 0:02:54.9]} 14... Nxe2+ {[%clk 0:02:46.5]} 15. Qxe2 {[%clk
0:02:55.8]} 15... e5 {[%clk 0:02:46.9]} 16. f4 {[%clk 0:02:54.8]} 16... f6
{[%clk 0:02:47.5]} 17. f5 {[%clk 0:02:48.6]} 17... b5 {[%clk 0:02:38.9]} 18. b3
{[%clk 0:02:46.5]} 18... g5 {[%clk 0:02:38.2]} 19. h4 {[%clk 0:02:45.6]} 19...
h6 {[%clk 0:02:32.4]} 20. hxg5 {[%clk 0:02:45.4]} 20... hxg5 {[%clk 0:02:32]}
21. Kf2 {[%clk 0:02:45.2]} 21... Bd7 {[%clk 0:02:24.9]} 22. Rh1 {[%clk
0:02:44.6]} 22... Be8 {[%clk 0:02:14.3]} 23. Rh2 {[%clk 0:02:32.2]} 23... Rh8
{[%clk 0:02:08.1]} 24. Rxh8 {[%clk 0:02:29.6]} 24... Kxh8 {[%clk 0:02:08.6]} 25.
Rh1+ {[%clk 0:02:29.5]} 25... Kg8 {[%clk 0:02:09.2]} 26. Bf3 {[%clk 0:02:14.9]}
26... Ra7 {[%clk 0:02:08.6]} 27. Ke3 {[%clk 0:01:44.3]} 27... Rh7 {[%clk
0:02:00.5]} 28. Rxh7 {[%clk 0:01:42.8]} 28... Kxh7 {[%clk 0:02:01.4]} 29. Qh2+
{[%clk 0:01:42.1]} 29... Kg7 {[%clk 0:02:00.6]} 30. Bh5 {[%clk 0:01:41.6]} 30...
Bc6 {[%clk 0:01:56.3]} 31. Bg6 {[%clk 0:01:39.4]} 31... Qh8 {[%clk 0:01:57]} 32.
Qxh8+ {[%clk 0:01:37.5]} 32... Kxh8 {[%clk 0:01:57.1]} 33. Bf7 {[%clk
0:01:27.2]} 33... Kg7 {[%clk 0:01:57.2]} 34. Be6 {[%clk 0:01:24]} 34... Kf8
{[%clk 0:01:57.6]} 35. Bc8 {[%clk 0:01:23.7]} 35... a5 {[%clk 0:01:58.2]} 36.
Ba6 {[%clk 0:01:20.6]} 36... bxc4 {[%clk 0:01:57.4]} 37. bxc4 {[%clk 0:01:02.6]}
37... Kg7 {[%clk 0:01:57.2]} 38. Bb5 {[%clk 0:00:45.8]} 38... Bb7 {[%clk
0:01:57.2]} 39. Kd2 {[%clk 0:00:43.6]} 39... Kf8 {[%clk 0:01:11.6]} 40. Kc3
{[%clk 0:00:42.8]} 40... Ke7 {[%clk 0:01:11.6]} 41. Kb3 {[%clk 0:00:43.4]} 41...
Kd8 {[%clk 0:01:12.1]} 42. Ka4 {[%clk 0:00:44]} 42... Kc7 {[%clk 0:01:12.8]} 43.
Kxa5 {[%clk 0:00:44.6]} 43... Bc8 {[%clk 0:01:10.6]} 44. Be8 {[%clk 0:00:37.8]}
44... Bb7 {[%clk 0:01:08.1]} 45. Kb5 {[%clk 0:00:33.6]} 45... Bc8 {[%clk
0:00:47.7]} 46. Bc6 {[%clk 0:00:27.9]} 46... Bb7 {[%clk 0:00:19]} 47. Bxb7
{[%clk 0:00:27]} 47... Kxb7 {[%clk 0:00:19.9]} 48. g4 {[%clk 0:00:27.3]} 48...
Kc7 {[%clk 0:00:19]} 49. a4 {[%clk 0:00:27.2]} 49... Kb7 {[%clk 0:00:19.5]} 50.
a5 {[%clk 0:00:27.6]} 50... Kc7 {[%clk 0:00:20.2]} 51. a6 {[%clk 0:00:27.8]}
51... Kd7 {[%clk 0:00:20.2]} 52. a7 {[%clk 0:00:26.6]} 1-0

[Event "Early-Titled-Tuesday-Blitz-March-19-2024"]
[Site "Chess.com"]
[Date "2024.03.19"]
[Round "3"]
[White "alexrustemov"]
[Black "djano"]
[Result "1-0"]
[WhiteElo "2879"]
[BlackElo "2621"]
[TimeControl "180+1"]
[EndTime "8:29:00 PDT"]
[Termination "alexrustemov won on time"]

1. d4 {[%clk 0:03:00.9]} 1... d6 {[%clk 0:02:59.9]} 2. Nf3 {[%clk 0:02:59.8]}
2... g6 {[%clk 0:03:00.1]} 3. c4 {[%clk 0:02:59.6]} 3... Bg7 {[%clk 0:03:00.4]}
4. g3 {[%clk 0:02:59.4]} 4... Nf6 {[%clk 0:03:00.6]} 5. Bg2 {[%clk 0:02:59.7]}
5... O-O {[%clk 0:03:01.2]} 6. Nc3 {[%clk 0:03:00.1]} 6... Nc6 {[%clk
0:02:56.6]} 7. O-O {[%clk 0:03:00.2]} 7... e5 {[%clk 0:02:56]} 8. h3 {[%clk
0:03:00.3]} 8... exd4 {[%clk 0:02:50.2]} 9. Nxd4 {[%clk 0:03:00.2]} 9... Bd7
{[%clk 0:02:50.9]} 10. Be3 {[%clk 0:02:55.9]} 10... Re8 {[%clk 0:02:49.3]} 11.
Qd2 {[%clk 0:02:54.9]} 11... Qc8 {[%clk 0:02:27.7]} 12. Kh2 {[%clk 0:02:53]}
12... Ne5 {[%clk 0:02:14.7]} 13. b3 {[%clk 0:02:50.7]} 13... a6 {[%clk
0:02:13.2]} 14. Rac1 {[%clk 0:02:41.4]} 14... Qd8 {[%clk 0:01:58.6]} 15. Bg5
{[%clk 0:02:32]} 15... Rb8 {[%clk 0:01:53]} 16. Nd5 {[%clk 0:02:30.1]} 16... Nc6
{[%clk 0:01:32]} 17. Nc2 {[%clk 0:02:07]} 17... Re5 {[%clk 0:01:21.8]} 18. f4
{[%clk 0:01:43.1]} 18... Rxg5 {[%clk 0:01:14.6]} 19. fxg5 {[%clk 0:01:43.1]}
19... Nh5 {[%clk 0:01:15.2]} 20. Bf3 {[%clk 0:01:33]} 20... f5 {[%clk
0:00:47.7]} 21. gxf6 {[%clk 0:01:15]} 21... Nxf6 {[%clk 0:00:46.2]} 22. Nce3
{[%clk 0:01:12.2]} 22... Ne5 {[%clk 0:00:40.4]} 23. Nxf6+ {[%clk 0:01:11.2]}
23... Bxf6 {[%clk 0:00:40.5]} 24. Nd5 {[%clk 0:01:08.6]} 24... Bg7 {[%clk
0:00:40.3]} 25. Bg2 {[%clk 0:01:04]} 25... h5 {[%clk 0:00:39.6]} 26. Qf4 {[%clk
0:01:02.8]} 26... Kh8 {[%clk 0:00:23.7]} 27. Rf2 {[%clk 0:00:53.9]} 27... Be6
{[%clk 0:00:20.5]} 28. Rcf1 {[%clk 0:00:52.3]} 28... c6 {[%clk 0:00:19.1]} 29.
Nf6 {[%clk 0:00:51.8]} 29... Qe7 {[%clk 0:00:19.5]} 30. Ne4 {[%clk 0:00:47.8]}
30... Rd8 {[%clk 0:00:17.5]} 31. Qg5 {[%clk 0:00:47.2]} 31... Qc7 {[%clk
0:00:17.7]} 32. c5 {[%clk 0:00:37]} 32... d5 {[%clk 0:00:11.7]} 33. Nd6 {[%clk
0:00:34.3]} 33... Rxd6 {[%clk 0:00:12]} 34. cxd6 {[%clk 0:00:34.2]} 34... Qxd6
{[%clk 0:00:12.9]} 35. Rf6 {[%clk 0:00:32.9]} 35... Kh7 {[%clk 0:00:11.3]} 36.
Qf4 {[%clk 0:00:28]} 36... Bxf6 {[%clk 0:00:09.4]} 37. Qxf6 {[%clk 0:00:28.2]}
37... h4 {[%clk 0:00:09.1]} 38. Qxh4+ {[%clk 0:00:27.2]} 38... Kg8 {[%clk
0:00:09.8]} 39. Qf6 {[%clk 0:00:25.6]} 39... d4 {[%clk 0:00:09.5]} 40. Rf4
{[%clk 0:00:24.3]} 40... d3 {[%clk 0:00:07.3]} 41. exd3 {[%clk 0:00:24]} 41...
Nf7 {[%clk 0:00:01.5]} 42. Qxg6+ {[%clk 0:00:22]} 42... Kf8 {[%clk 0:00:01.4]}
43. Rxf7+ {[%clk 0:00:21.4]} 1-0

[Event "Early-Titled-Tuesday-Blitz-March-19-2024"]
[Site "Chess.com"]
[Date "2024.03.19"]
[Round "3"]
[White "KnightmareJoker"]
[Black "SlavenPastar"]
[Result "0-1"]
[WhiteElo "2296"]
[BlackElo "2585"]
[TimeControl "180+1"]
[EndTime "8:29:00 PDT"]
[Termination "SlavenPastar won by resignation"]

1. e4 {[%clk 0:03:00.9]} 1... b6 {[%clk 0:03:00.2]} 2. d4 {[%clk 0:03:00.8]}
2... Bb7 {[%clk 0:03:00.9]} 3. Nc3 {[%clk 0:03:01.5]} 3... e6 {[%clk 0:03:00.8]}
4. Be3 {[%clk 0:03:00]} 4... Bb4 {[%clk 0:03:00.2]} 5. f3 {[%clk 0:02:59.4]}
5... Bxc3+ {[%clk 0:02:56.9]} 6. bxc3 {[%clk 0:02:59.5]} 6... d6 {[%clk
0:02:56.5]} 7. Bd3 {[%clk 0:02:58.6]} 7... Nd7 {[%clk 0:02:57.1]} 8. Ne2 {[%clk
0:02:58]} 8... Ngf6 {[%clk 0:02:57.6]} 9. O-O {[%clk 0:02:57.4]} 9... e5 {[%clk
0:02:57.3]} 10. d5 {[%clk 0:02:57.3]} 10... Nc5 {[%clk 0:02:54.1]} 11. Bb5+
{[%clk 0:02:53]} 11... Nfd7 {[%clk 0:02:54]} 12. Bxc5 {[%clk 0:02:46.3]} 12...
bxc5 {[%clk 0:02:51.3]} 13. f4 {[%clk 0:02:45.5]} 13... exf4 {[%clk 0:02:49.6]}
14. Nxf4 {[%clk 0:02:25.8]} 14... O-O {[%clk 0:02:49]} 15. Bxd7 {[%clk
0:02:22.4]} 15... Qxd7 {[%clk 0:02:49.9]} 16. Qf3 {[%clk 0:02:20.6]} 16... Ba6
{[%clk 0:02:46.9]} 17. Rf2 {[%clk 0:02:19.1]} 17... Rab8 {[%clk 0:02:45.9]} 18.
Nh5 {[%clk 0:02:17.1]} 18... Qe7 {[%clk 0:02:18.7]} 19. Qg3 {[%clk 0:02:15.2]}
19... f6 {[%clk 0:02:16.9]} 20. Rf4 {[%clk 0:01:58]} 20... Kh8 {[%clk
0:02:05.8]} 21. Rh4 {[%clk 0:01:57.6]} 21... g5 {[%clk 0:01:57.3]} 22. Rh3
{[%clk 0:01:34.4]} 22... Bc8 {[%clk 0:01:28.5]} 23. Rf1 {[%clk 0:01:24.7]} 23...
Bxh3 {[%clk 0:01:20.3]} 24. Qxh3 {[%clk 0:01:24.3]} 24... Qxe4 {[%clk
0:01:02.5]} 25. Nxf6 {[%clk 0:01:01.5]} 25... Qg6 {[%clk 0:00:58.7]} 26. Qe6
{[%clk 0:00:58]} 26... Rf7 {[%clk 0:00:54.5]} 27. Rf2 {[%clk 0:00:22.5]} 27...
Rbf8 {[%clk 0:00:52.3]} 28. Ng4 {[%clk 0:00:13.8]} 28... Rxf2 {[%clk 0:00:47.7]}
29. Nxf2 {[%clk 0:00:13.7]} 29... Qxe6 {[%clk 0:00:45]} 30. dxe6 {[%clk
0:00:14.6]} 30... Re8 {[%clk 0:00:45.3]} 31. Ne4 {[%clk 0:00:14.9]} 31... h6
{[%clk 0:00:41]} 32. Nf6 {[%clk 0:00:15.3]} 32... Rxe6 {[%clk 0:00:38.6]} 33.
Nd5 {[%clk 0:00:15.9]} 33... c6 {[%clk 0:00:32.8]} 34. Nc7 {[%clk 0:00:16.4]}
34... Re2 {[%clk 0:00:30]} 35. h3 {[%clk 0:00:12.7]} 35... Kg8 {[%clk
0:00:25.2]} 36. Kf1 {[%clk 0:00:10.5]} 36... Rxc2 {[%clk 0:00:23.8]} 37. Ne8
{[%clk 0:00:11.3]} 37... Rxa2 {[%clk 0:00:20.4]} 38. Nxd6 {[%clk 0:00:11.1]}
38... a5 {[%clk 0:00:20.3]} 39. Nb7 {[%clk 0:00:11.2]} 39... a4 {[%clk
0:00:20.4]} 40. Nxc5 {[%clk 0:00:11.6]} 40... a3 {[%clk 0:00:21.1]} 41. Nb3
{[%clk 0:00:10.2]} 41... Rb2 {[%clk 0:00:21.4]} 0-1

[Event "Early-Titled-Tuesday-Blitz-March-19-2024"]
[Site "Chess.com"]
[Date "2024.03.19"]
[Round "3"]
[White "Lady_Nika"]
[Black "Aleksandar-Topalov"]
[Result "1-0"]
[WhiteElo "2583"]
[BlackElo "2281"]
[TimeControl "180+1"]
[EndTime "8:29:01 PDT"]
[Termination "Lady_Nika won on time"]

1. e4 {[%clk 0:03:00.9]} 1... e6 {[%clk 0:02:19]} 2. d4 {[%clk 0:02:58.1]} 2...
d5 {[%clk 0:02:18.9]} 3. exd5 {[%clk 0:02:58.5]} 3... exd5 {[%clk 0:02:18.4]} 4.
Nf3 {[%clk 0:02:59.4]} 4... Bd6 {[%clk 0:02:14]} 5. Bd3 {[%clk 0:02:59]} 5...
Ne7 {[%clk 0:02:13.6]} 6. O-O {[%clk 0:02:59.9]} 6... h6 {[%clk 0:02:13.4]} 7.
c4 {[%clk 0:02:59.4]} 7... c6 {[%clk 0:02:10.4]} 8. Nc3 {[%clk 0:02:59.3]} 8...
dxc4 {[%clk 0:02:05.2]} 9. Bxc4 {[%clk 0:02:59.2]} 9... O-O {[%clk 0:02:05.3]}
10. Ne4 {[%clk 0:02:57.2]} 10... Bg4 {[%clk 0:01:51]} 11. h3 {[%clk 0:02:55.8]}
11... Bh5 {[%clk 0:01:50]} 12. g4 {[%clk 0:02:55.5]} 12... Bg6 {[%clk
0:01:49.9]} 13. Nxd6 {[%clk 0:02:53.4]} 13... Qxd6 {[%clk 0:01:49.3]} 14. Ne5
{[%clk 0:02:53.5]} 14... Nd5 {[%clk 0:01:35.4]} 15. a4 {[%clk 0:02:46.1]} 15...
Nd7 {[%clk 0:01:29.2]} 16. f4 {[%clk 0:02:35.3]} 16... Be4 {[%clk 0:01:06.8]}
17. Qe2 {[%clk 0:02:27.2]} 17... f5 {[%clk 0:01:01.1]} 18. Be3 {[%clk
0:02:25.5]} 18... Kh7 {[%clk 0:00:37.3]} 19. Rae1 {[%clk 0:02:13.3]} 19... Nb4
{[%clk 0:00:20.5]} 20. g5 {[%clk 0:02:00.6]} 20... Bd5 {[%clk 0:00:18.3]} 21.
gxh6 {[%clk 0:01:50.8]} 21... gxh6 {[%clk 0:00:17.9]} 22. Kh2 {[%clk 0:01:48.7]}
22... Rg8 {[%clk 0:00:17.7]} 23. Rg1 {[%clk 0:01:48.7]} 23... Bxc4 {[%clk
0:00:17]} 24. Qxc4 {[%clk 0:01:48.2]} 24... Nd5 {[%clk 0:00:16.5]} 25. Qd3
{[%clk 0:01:44.5]} 25... Nxe5 {[%clk 0:00:15.8]} 26. fxe5 {[%clk 0:01:39.7]}
26... Qe6 {[%clk 0:00:16]} 27. Ref1 {[%clk 0:01:39.5]} 27... Rxg1 {[%clk
0:00:15.8]} 28. Bxg1 {[%clk 0:01:38.8]} 28... Rf8 {[%clk 0:00:15.4]} 29. Rf3
{[%clk 0:01:30.9]} 29... Kh8 {[%clk 0:00:14.4]} 30. b4 {[%clk 0:01:29.2]} 30...
f4 {[%clk 0:00:13.5]} 31. b5 {[%clk 0:01:28.2]} 31... Rg8 {[%clk 0:00:13.1]} 32.
bxc6 {[%clk 0:01:27.6]} 32... bxc6 {[%clk 0:00:12.7]} 33. Bf2 {[%clk 0:01:19]}
33... Qf7 {[%clk 0:00:12.3]} 34. Be1 {[%clk 0:00:55.8]} 34... Qg7 {[%clk
0:00:12.3]} 35. Qf1 {[%clk 0:00:54.7]} 35... Qg6 {[%clk 0:00:11.2]} 36. Bd2
{[%clk 0:00:54]} 36... Qe4 {[%clk 0:00:11]} 37. Qf2 {[%clk 0:00:46.8]} 37... Qf5
{[%clk 0:00:08.7]} 38. Qh4 {[%clk 0:00:45.9]} 38... Qe4 {[%clk 0:00:07.4]} 39.
Qxh6+ {[%clk 0:00:45.7]} 39... Qh7 {[%clk 0:00:06.7]} 40. Qxh7+ {[%clk
0:00:44.9]} 40... Kxh7 {[%clk 0:00:07.2]} 41. Bxf4 {[%clk 0:00:45.5]} 41... Rf8
{[%clk 0:00:06.3]} 42. e6 {[%clk 0:00:39.4]} 42... Re8 {[%clk 0:00:01.5]} 43.
Be5 {[%clk 0:00:37.5]} 43... Rxe6 {[%clk 0:00:01.6]} 44. Rf7+ {[%clk 0:00:38.1]}
44... Kg6 {[%clk 0:00:02.1]} 45. Rxa7 {[%clk 0:00:39]} 45... c5 {[%clk
0:00:01.9]} 46. Rd7 {[%clk 0:00:36.9]} 1-0

[Event "Early-Titled-Tuesday-Blitz-March-19-2024"]
[Site "Chess.com"]
[Date "2024.03.19"]
[Round "3"]
[White "Iskusnyh"]
[Black "ViktoriyaTarasova"]
[Result "1-0"]
[WhiteElo "2639"]
[BlackElo "2312"]
[TimeControl "180+1"]
[EndTime "8:29:01 PDT"]
[Termination "Iskusnyh won by resignation"]

1. d4 {[%clk 0:02:57.1]} 1... Nf6 {[%clk 0:02:59.7]} 2. c4 {[%clk 0:02:57.2]}
2... e6 {[%clk 0:02:59.5]} 3. g3 {[%clk 0:02:56.1]} 3... d5 {[%clk 0:02:58.8]}
4. Bg2 {[%clk 0:02:54.8]} 4... Bb4+ {[%clk 0:02:58.8]} 5. Nd2 {[%clk 0:02:51.9]}
5... O-O {[%clk 0:02:57.7]} 6. Nf3 {[%clk 0:02:50.3]} 6... dxc4 {[%clk
0:02:49.7]} 7. Qc2 {[%clk 0:02:49]} 7... c5 {[%clk 0:02:49.1]} 8. O-O {[%clk
0:02:37.5]} 8... cxd4 {[%clk 0:02:48]} 9. Qxc4 {[%clk 0:02:36.6]} 9... Nc6
{[%clk 0:02:47.1]} 10. Nb3 {[%clk 0:02:24.5]} 10... Qb6 {[%clk 0:01:54]} 11.
Nfxd4 {[%clk 0:02:10.4]} 11... Nxd4 {[%clk 0:01:53.5]} 12. Qxd4 {[%clk
0:02:08.1]} 12... Qxd4 {[%clk 0:01:51.3]} 13. Nxd4 {[%clk 0:02:09]} 13... e5
{[%clk 0:01:37.5]} 14. Nb5 {[%clk 0:01:45.6]} 14... Bd7 {[%clk 0:01:35.2]} 15.
Nc3 {[%clk 0:01:35.6]} 15... Rab8 {[%clk 0:01:29.1]} 16. Bd2 {[%clk 0:01:28.2]}
16... h6 {[%clk 0:01:26.3]} 17. Rfd1 {[%clk 0:01:24.6]} 17... Rfd8 {[%clk
0:01:25.8]} 18. a3 {[%clk 0:00:56.8]} 18... Be7 {[%clk 0:01:23.6]} 19. Be3
{[%clk 0:00:54.6]} 19... b6 {[%clk 0:01:23.2]} 20. h3 {[%clk 0:00:51.1]} 20...
Be6 {[%clk 0:01:22.6]} 21. Nb5 {[%clk 0:00:46.5]} 21... Rxd1+ {[%clk 0:01:03.6]}
22. Rxd1 {[%clk 0:00:45.6]} 22... a6 {[%clk 0:01:03.6]} 23. Na7 {[%clk
0:00:43.6]} 23... Bd7 {[%clk 0:00:47.5]} 24. Nc6 {[%clk 0:00:39.7]} 24... Bxc6
{[%clk 0:00:47.4]} 25. Bxc6 {[%clk 0:00:40.3]} 25... Bc5 {[%clk 0:00:36.6]} 26.
Bc1 {[%clk 0:00:33.9]} 26... a5 {[%clk 0:00:36.7]} 27. Kg2 {[%clk 0:00:31.5]}
27... Rc8 {[%clk 0:00:36.7]} 28. Ba4 {[%clk 0:00:28.9]} 28... Ne4 {[%clk
0:00:32.5]} 29. f3 {[%clk 0:00:25.9]} 29... Nf6 {[%clk 0:00:31.7]} 30. g4 {[%clk
0:00:24.6]} 30... Bf8 {[%clk 0:00:28.6]} 31. h4 {[%clk 0:00:24.1]} 31... Rc4
{[%clk 0:00:22.6]} 32. Bb3 {[%clk 0:00:22.6]} 32... Rc7 {[%clk 0:00:16.8]} 33.
g5 {[%clk 0:00:22.4]} 33... hxg5 {[%clk 0:00:16.9]} 34. hxg5 {[%clk 0:00:22.9]}
34... Nh5 {[%clk 0:00:17.6]} 35. g6 {[%clk 0:00:22.8]} 35... Nf4+ {[%clk
0:00:11]} 36. Bxf4 {[%clk 0:00:22.6]} 36... exf4 {[%clk 0:00:11.7]} 37. Rd8
{[%clk 0:00:22]} 37... Re7 {[%clk 0:00:07.2]} 38. gxf7+ {[%clk 0:00:21.6]} 1-0